[Event "20th Heraklion IT Open 2017"]
[Site "Heraklion"]
[Date "2017.04.24"]
[Round "9"]
[White "Vitsaxakis, Nikolaos"]
[Black "Fragiadakis, Emanouel"]
[Result "0-1"]
[ECO "D00"]
[WhiteElo "1726"]
[BlackElo "1827"]
[Annotator "NA"]
[PlyCount "66"]
[EventDate "2017.??.??"]
[EventType "swiss"]
[EventCountry "GRE"]
[SourceTitle "playchess.com"]
[Source "ChessBase"]
[SourceQuality "1"]
[TimeControl "40/5400+30:1800+30"]

{[%evp 9,59,0,32767,32767,32767,32767,28,8,53,31,41,29,32767,32767,32767,32767,3,19,0,29,19,0,10,-33,-46,-71,-75,-62,-63,-59,-52,-94,-58,-97,-84,-65,32767,-86,32767,-70,32767,-213,-62,32767,-54,-162,32767,-223,32767,32767,32767,-2081]} 1. d4 {[%emt 0:00:00]} d5 {[%emt 0:00:05]} 2. Bf4 {[%emt 0:00:00]} Nf6 {[%emt 0:00:11]} 3. e3 {[%emt 0:01:02]} c5 {[%emt 0:00:27]} 4. Nf3 {[%emt 0:01:19]} Nc6 {[%emt 0:00:27]} 5. c3 {[%emt 0:02:00]} e6 {[%emt 0:00:53]} 6. Nbd2 {[%emt 0:00:28]} Bd6 {[%emt 0:00:14]} 7. Ne5 {[%emt 0:00:57]} Qe7 {[%emt 0:02:24] D02: 1 d4 d5 2 Nf3 sidelines, including 2...Nf6 3 g3 and 2...Nf6 3 Bf4} (7... Qc7 8. Ndf3 O-O 9. Bd3 b6 10. Nxc6 Qxc6 11. Ne5 Qc7 12. Qf3 Ne4 13. Nc4 Bxf4 14. Qxf4 Qxf4 15. exf4 Ba6 16. Bxe4 dxe4 {½-½ (95) Giri,A (2798)-Hou,Y (2673) Wijk aan Zee 2016}) 8. Bd3 $146 {[%emt 0:01:06]} (8. Bb5 Bd7 9. Qa4 Bxe5 10. dxe5 Nh5 11. Nf3 Nxf4 12. Qxf4 O-O 13. Bd3 f6 14. Qh4 g6 15. g4 fxe5 16. Qxe7 Nxe7 17. Nxe5 {1-0 (54) Rahimi,R (1669)-Schlichter,L (1609) Magdeburg 2014}) 8... Bd7 {[%emt 0:00:30]} 9. Qe2 {[%emt 0:03:33]} Rc8 {[%emt 0:03:05]} 10. a3 {[%emt 0:04:49]} O-O {[%emt 0:00:17]} 11. h4 {[%emt 0:00:17]} Ne8 {[%emt 0:00:46]} 12. Rh3 {[%emt 0:07:50]} f5 {[%emt 0:01:00]} 13. h5 {[%emt 0:10:08]} Nf6 {[%emt 0:02:12]} 14. Ndf3 {[%emt 0:04:27]} c4 {[%emt 0:19:54]} 15. Bc2 {[%emt 0:02:06]} b5 {[%emt 0:00:09]} 16. Nh4 {[%emt 0:01:25]} Bxe5 {[%emt 0:02:10]} 17. Bxe5 {[%emt 0:03:21]} Nxe5 {[%emt 0:04:43]} 18. dxe5 {[%emt 0:00:02]} Ng4 $1 {[%emt 0:00:11]} 19. f4 {[%emt 0:05:49]} Qc5 {[%emt 0:04:56]} 20. Kd2 {[%emt 0:03:11]} a5 {[%emt 0:11:50]} 21. Rg3 {[%emt 0:02:55]} Nh6 $1 {[%emt 0:08:02]} 22. Rh3 {[%emt 0:06:28]} b4 {[%emt 0:01:08]} 23. Rhh1 {[%emt 0:16:03]} bxc3+ {[%emt 0:03:15]} 24. bxc3 {[%emt 0:00:02]} Rb8 {[%emt 0:00:28]} 25. Ra2 {[%emt 0:00:15] [#]} (25. Nf3 $17 {was worth a try.}) 25... Rb7 {[%emt 0:03:09]} (25... Rb3 $1 $19 {[%mdl 512] ...a4 is the strong threat.} 26. Nf3 (26. Bxb3 cxb3) 26... a4) 26. Nf3 {[%emt 0:09:47] [#]} Rfb8 {[%emt 0:01:02]} ({Better is} 26... Rb3 $1 $19 {[%mdl 512]} 27. Bxb3 cxb3) 27. Qd1 {[%emt 0:01:03]} ({White must play} 27. a4 $1 $15) 27... Ng4 {[%emt 0:00:48]} 28. Qe2 {[%emt 0:02:14]} Rb2 {[%emt 0:00:34]} 29. Raa1 {[%emt 0:00:44]} Nxe3 {[%emt 0:04:26]} 30. Nd4 $19 {[%emt 0:03:04]} Nxc2 {[%emt 0:00:31]} 31. Nxc2 {[%emt 0:00:04]} d4 {[%emt 0:01:16]} 32. cxd4 {[%emt 0:01:02]} Qxd4+ {[%emt 0:00:20]} 33. Ke1 {[%emt 0:00:48]} Rxc2 {[%emt 0:00:28]} 0-1

[Event "20th Heraklion IT Open 2017"]
[Site "Heraklion"]
[Date "2017.04.24"]
[Round "9"]
[White "Stratigi, Evangelia"]
[Black "Kiriakakis, Ioannis"]
[Result "1-0"]
[ECO "C77"]
[WhiteElo "1662"]
[BlackElo "1534"]
[Annotator "NA"]
[PlyCount "53"]
[EventDate "2017.??.??"]
[EventType "swiss"]
[EventCountry "GRE"]
[SourceTitle "playchess.com"]
[Source "ChessBase"]
[SourceQuality "1"]
[TimeControl "40/5400+30:1800+30"]

1. e4 {[%emt 0:00:00]} e5 {[%emt 0:00:07]} 2. Nf3 {[%emt 0:00:00]} Nc6 {[%emt 0:00:06]} 3. Bb5 {[%emt 0:00:00]} a6 {[%emt 0:00:07]} 4. Ba4 {[%emt 0:00:00]} Nf6 {[%emt 0:00:08]} 5. d3 {[%emt 0:00:02]} d6 {[%emt 0:00:06]} 6. c3 {[%emt 0:00:22]} g6 {[%emt 0:00:06]} 7. O-O {[%emt 0:00:53]} Bg7 {[%emt 0:00:07]} 8. Re1 {[%emt 0:04:04]} O-O {[%emt 0:06:02]} 9. h3 {[%emt 0:01:10]} Bd7 {[%emt 0:07:16]} 10. Nbd2 {[%emt 0:07:54]} Re8 {[%emt 0:01:54]} 11. Nf1 {[%emt 0:00:41]} h6 {[%emt 0:03:00]} 12. Ng3 {[%emt 0:02:00]} d5 {[%emt 0:04:25]} 13. exd5 {[%emt 0:09:40]} Nxd5 {[%emt 0:00:09]} 14. Ne4 {[%emt 0:01:05]} b6 {[%emt 0:03:26]} 15. Ng3 {[%emt 0:08:42]} Kh7 {[%emt 0:09:52]} 16. c4 {[%emt 0:10:35]} Nde7 {[%emt 0:07:10]} 17. h4 {[%emt 0:04:05]} Rb8 {[%emt 0:05:55]} 18. h5 {[%emt 0:04:11]} b5 {[%emt 0:06:32]} 19. cxb5 {[%emt 0:03:16]} axb5 {[%emt 0:00:07]} 20. Bb3 {[%emt 0:00:09]} Rf8 {[%emt 0:00:21]} 21. Be3 {[%emt 0:05:24]} Nd4 {[%emt 0:08:14]} 22. Bxd4 {[%emt 0:02:00]} exd4 {[%emt 0:00:01]} 23. Ne5 {[%emt 0:01:27]} Be8 {[%emt 0:00:42]} 24. Qf3 {[%emt 0:07:58]} Rb6 {[%emt 0:02:58]} 25. Rac1 {[%emt 0:02:44]} Rf6 {[%emt 0:02:51]} 26. Qe4 {[%emt 0:01:19]} Nf5 {[%emt 0:00:48]} 27. Ng4 {[%emt 0:01:18]} 1-0

[Event "20th Heraklion IT Open 2017"]
[Site "Heraklion"]
[Date "2017.04.24"]
[Round "9"]
[White "Mardoyan Ararat, T  Artur"]
[Black "Koutsourakis, Ioannis"]
[Result "1/2-1/2"]
[ECO "D04"]
[WhiteElo "1502"]
[BlackElo "1543"]
[Annotator "NA"]
[PlyCount "89"]
[EventDate "2017.??.??"]
[EventType "swiss"]
[EventCountry "GRE"]
[SourceTitle "playchess.com"]
[Source "ChessBase"]
[SourceQuality "1"]
[TimeControl "40/5400+30:1800+30"]

1. d4 {[%emt 0:00:00]} d5 {[%emt 0:00:05]} 2. Nf3 {[%emt 0:00:00]} Nf6 {[%emt 0:00:10]} 3. e3 {[%emt 0:00:00]} c6 {[%emt 0:01:01]} 4. Bd3 {[%emt 0:00:06]} e6 {[%emt 0:02:44]} 5. Nbd2 {[%emt 0:01:05]} Nbd7 {[%emt 0:01:37]} 6. b3 {[%emt 0:00:52]} b6 {[%emt 0:03:04]} 7. Bb2 {[%emt 0:00:04]} Bb7 {[%emt 0:00:17]} 8. O-O {[%emt 0:00:05]} Be7 {[%emt 0:02:56]} 9. Ne5 {[%emt 0:10:14]} Nxe5 {[%emt 0:05:49]} 10. dxe5 {[%emt 0:00:03]} Nd7 {[%emt 0:00:29]} 11. c4 {[%emt 0:05:17]} O-O {[%emt 0:02:10]} 12. Qh5 {[%emt 0:04:33]} h6 {[%emt 0:03:54]} 13. Rac1 {[%emt 0:03:19]} a5 {[%emt 0:10:52]} 14. a4 {[%emt 0:01:04]} Nc5 {[%emt 0:01:58]} 15. Bc2 {[%emt 0:01:52]} Ba6 {[%emt 0:07:41]} 16. Rfd1 {[%emt 0:09:11]} Qc7 {[%emt 0:03:37]} 17. cxd5 {[%emt 0:11:59]} cxd5 {[%emt 0:01:31]} 18. e4 {[%emt 0:04:28]} Bb7 {[%emt 0:05:45]} 19. Qe2 {[%emt 0:04:46]} Bg5 {[%emt 0:06:36]} 20. exd5 {[%emt 0:03:09]} Bxd5 {[%emt 0:00:47]} 21. g3 {[%emt 0:00:32]} Qb7 {[%emt 0:05:27]} 22. f4 {[%emt 0:08:09]} Be7 {[%emt 0:00:31]} 23. Bd4 {[%emt 0:15:50]} Rfd8 {[%emt 0:03:01]} 24. Kf1 {[%emt 0:01:36]} Rac8 {[%emt 0:13:53]} 25. Bxc5 {[%emt 0:00:34]} Bxc5 {[%emt 0:00:35]} 26. Be4 {[%emt 0:01:21]} Bxe4 {[%emt 0:04:27]} 27. Nxe4 {[%emt 0:00:31]} Bb4 {[%emt 0:06:05]} 28. Rxc8 {[%emt 0:04:36]} Rxc8 {[%emt 0:01:01]} 29. Qd3 {[%emt 0:03:41]} Qc6 {[%emt 0:02:36]} 30. h4 {[%emt 0:02:26]} Rc7 {[%emt 0:02:45]} 31. Qd8+ {[%emt 0:01:03]} Kh7 {[%emt 0:00:14]} 32. Qd3 {[%emt 0:00:04]} Kg8 {[%emt 0:00:38]} 33. Qd8+ {[%emt 0:00:04]} Bf8 {[%emt 0:01:28]} 34. Qd3 {[%emt 0:00:03]} Be7 {[%emt 0:00:16]} 35. Qe2 {[%emt 0:03:13]} Rd7 {[%emt 0:00:58]} 36. Rxd7 {[%emt 0:00:10]} Qxd7 {[%emt 0:00:04]} 37. Qd2 {[%emt 0:00:54]} Qc6 {[%emt 0:00:25]} 38. Qd3 {[%emt 0:00:25]} Qc1+ {[%emt 0:00:15]} 39. Ke2 {[%emt 0:00:35]} Qc6 {[%emt 0:01:29]} 40. Ke3 {[%emt 0:00:00]} Qc1+ {[%emt 0:00:31]} 41. Ke2 {[%emt 0:03:52]} Qc6 {[%emt 0:04:13]} 42. Ke3 {[%emt 0:00:56]} Qc1+ {[%emt 0:01:21]} 43. Ke2 {[%emt 0:00:01]} Qc6 {[%emt 0:00:46]} 44. Ke3 {[%emt 0:00:13]} Qc1+ {[%emt 0:00:25]} 45. Kd4 1/2-1/2